Cogmind - Beta 16 @@@ ROGUE MODE // 2026.02.05 @ 17:07:20 Player: AlmondRoll Result: Destroyed by MB-CBQ(R) with Subdweller Machine Gun Performance ------------- Evolutions (0) 0 Regions Visited (2) 400 Robots Destroyed (41) 205 Value Destroyed (796) 796 Prototype IDs (0) 0 Alien Tech Used (0) 0 Bonus (0) 0 TOTAL SCORE: 1401 Bonus ------- None Cogmind --------- Core Integrity 0/250 Matter 232/300 Energy 250/250 System Corruption 1% Temperature Cool (0) Movement Treading (320) Ox2 Location -10/Subcaves Parts ------- > --- POWER (1) -------- Ion Engine > --- PROPULSION (2) --- Light Treads Light Treads > --- UTILITY (2) ------ Huge Storage Unit Medium Armor Plating (fused) > --- WEAPON (2) ------- Subdweller Machine Gun Subdweller Machine Gun > --- INVENTORY (25) --- Improved Treads Improved Treads Improved Treads Improved Treads Spiked Treads Armored Wheel Armored Wheel Armored Wheel Armored Wheel High-capacity Matter Pod (198) Medium Armor Plating Medium Armor Plating Scrap Shield Makeshift Hacking Suite Subdweller Beam Cannon Shotgun Subdweller Machine Gun Subdweller Machine Gun Subdweller Machine Gun Improved Light Cannon Grenade Launcher Subdweller Shrapnel Launcher Datajack Mining Laser Peak State ------------ > --- POWER ------------ Ion Engine > --- PROPULSION ------- Light Treads Light Treads > --- UTILITY ---------- Huge Storage Unit Medium Armor Plating > --- WEAPON ----------- Shotgun Shotgun > --- INVENTORY -------- Light Treads Light Treads Improved Treads Improved Treads Improved Treads Improved Treads Armored Wheel Armored Wheel Armored Wheel Armored Wheel High-capacity Matter Pod Structural Scanner Medium Armor Plating Medium Armor Plating Medium Armor Plating Assault Rifle Light Assault Rifle Light Assault Rifle Shotgun Shotgun Subdweller Machine Gun Improved Light Cannon Grenade Launcher Datajack Mining Laser [Rating: 14] Favorites ----------- Power Ion Engine Engine Ion Engine Propulsion Light Treads Treads Light Treads Leg Aluminum Leg Utility Huge Storage Unit Device Structural Scanner Storage Huge Storage Unit Protection Medium Armor Plating Weapon Shotgun Energy Gun Medium Laser Energy Cannon Subdweller Beam Cannon Ballistic Gun Shotgun Special Weapon Mining Laser Build | -11 -10 -10 ------- Run | Yrd Mat Sub Slots Evolved . | . . . Power . | . . . Propulsion . | . . . Utility . | . . . Weapon . | . . . Parts Attached 25 | 4 12 9 Power 2 | . 2 . Engine 2 | . 2 . Core . | . . . Reactor . | . . . Propulsion 7 | 2 5 . Treads 7 | 2 5 . Leg . | . . . Wheel . | . . . Hover . | . . . Flight . | . . . Utility 5 | 1 2 2 Device 2 | 1 1 . Storage 1 | . 1 . Processor . | . . . Hackware . | . . . Protection 2 | . . 2 Artifact . | . . . Weapon 11 | 1 3 7 Energy Gun 1 | 1 . . Energy Cannon 1 | . . 1 Ballistic Gun 8 | . 3 5 Ballistic Cannon . | . . . Launcher . | . . . Special Weapon 1 | . . 1 Impact Weapon . | . . . Slashing Weapon . | . . . Piercing Weapon . | . . . Special Melee Weapon . | . . . Unidentified Prototypes . | . . . Parts Lost 4 | . 1 3 Power . | . . . Propulsion 1 | . . 1 Utility 3 | . 1 2 Weapon . | . . . Highest Loss Streak 2 | . 1 2 To Critical Strikes . | . . . Average Backups 19 | 6 13 24 Power . | 1 . . Propulsion 7 | 4 5 9 Utility 3 | . 2 4 Weapon 7 | 1 5 9 Tool/Special . | . . . Unused Backups 28 | . 8 20 Power 2 | . 2 . Propulsion 10 | . 3 7 Utility 6 | . 1 5 Weapon 9 | . 2 7 Tool/Special 1 | . . 1 Average Slot Usage (%) 98 | . 95 100 Engine 14 | . 14 14 Treads 28 | . 28 28 Device 7 | . 10 4 Storage 14 | . 14 14 Protection 5 | . . 9 Energy Gun 1 | . 2 . Energy Cannon 2 | . . 4 Ballistic Gun 24 | . 25 23 Peak Build Rating 14 | 7 12 14 Average Rating 11 | 6 9 13 On Entrance 8 | 6 7 12 Avg Prop Armor Cover (%) . | . . . Naked Turns . | . . . Heaviest Build 104 | 13 92 104 Greatest Support 46 | 40 46 40 Greatest Overweight (x) 2 | . 2 2 Average Overweight (x) 1 | . . 2 Largest Inventory Capacity 25 | 8 25 25 Average Capacity 20 | 8 15 25 Most Carried 25 | 7 24 25 Average Carried 19 | 6 13 24 Final Capacity 25 | 8 25 25 Final Carried 25 | 7 24 25 Class Distribution -------------------- 100% | Mutant Dominant Class ---------------- Mutant | -10/Materials Mutant | -10/Subcaves Resources | -11 -10 -10 ----------- Run | Yrd Mat Sub Matter Collected 1230 | 239 329 662 Remotely . | . . . Salvage Created 1280 | 198 597 485 Parts 89 | 16 49 24 Haulers Intercepted 1 | . 1 . Recyclers Shooed 3 | . 3 . Parts Field Recycled . | . . . Retrieved Matter . | . . . Parts Self-Destructed 8 | . . 8 Prevented . | . . . Parts Restored . | . . . Kills | -11 -10 -10 ------- Run | Yrd Mat Sub Combat Hostiles Destroyed 26 | . 16 10 Guns 24 | . 16 8 Cannons 1 | . . 1 Classes Destroyed 10 | 2 6 2 Builder 1 | . 1 . Tunneler 5 | 5 . . Hauler 1 | . 1 . Recycler 3 | 1 2 . Operator 2 | . 2 . Watcher 3 | . 3 . Swarmer 12 | . 12 . Grunt 4 | . 4 . Artisan 1 | . . 1 Subdweller 10 | . . 10 Best Kill Streak 6 | 5 6 2 Combat Bots Only 6 | . 6 2 Max Kills in Single Turn 2 | 2 2 1 Gunslinging 1 | . 1 . Exploded . | . . . Melee . | . . . Uniques/NPCs Destroyed . | . . . Combat | -11 -10 -10 -------- Run | Yrd Mat Sub Hostile Shots Fired 130 | . 76 54 Missed 38 | . 21 17 Hits 92 | . 55 37 Projectile 92 | . 55 37 Damage Taken 1254 | . 476 778 Core 267 | . 160 107 Absorbed by Shields . | . . . Core Remaining (%) 100 | 100 . . Volleys Fired 142 | 5 71 66 Largest 2 | 2 2 2 Hottest 110 | 70 70 110 Shots Fired 278 | 10 141 127 Gun 257 | 10 141 106 Cannon 18 | . . 18 Launcher . | . . . Special 3 | . . 3 Kinetic 207 | 5 96 106 Thermal 71 | 5 45 21 Explosive . | . . . Electromagnetic . | . . . Robot Hit Streak 17 | 4 5 17 Robot Miss Streak 7 | 1 7 3 Penetration Max . | . . . Secondary Targets 4 | . 3 1 Max Gunslinging Chain 1 | . 1 1 Shots Hit Robots 172 | 6 74 92 Core Hits 70 | 7 37 26 Critical Kills 3 | . . 3 Critical Parts Destroyed . | . . . Critical Strikes 9 | . 6 3 Burn 6 | . 6 . Meltdown 1 | . . 1 Destroy 2 | . . 2 Melee Attacks . | . . . Impact . | . . . Slashing . | . . . Piercing . | . . . Sneak Attacks . | . . . Combat Hostiles . | . . . Follow-up Attacks . | . . . Damage Inflicted 2784 | 118 941 1725 Guns 2442 | 118 923 1401 Cannons 321 | . . 321 Explosions . | . . . Melee . | . . . Ramming 21 | . 18 3 Kinetic 2154 | 67 686 1401 Thermal 609 | 51 237 321 Explosive . | . . . Electromagnetic . | . . . Impact . | . . . Slashing . | . . . Piercing . | . . . Highest Corruption 1 | . 1 1 Average Corruption 1 | . 1 1 Corruption Purged . | . . . Corruption Blocked . | . . . Effects 17 | . . 17 Message Errors 3 | . . 3 Matter Fused 4 | . . 4 Heat Flow Errors 2 | . . 2 Energy Discharges 3 | . . 3 Parts Fused 1 | . . 1 Data Loss (minor) 1 | . . 1 Data Loss (major) 1 | . . 1 Misfires 2 | . . 2 Overload Shots . | . . . Overflow Damage . | . . . Projectiles . | . . . Explosions . | . . . Melee . | . . . Knockbacks . | . . . Impact . | . . . Kinetic . | . . . Secondary . | . . . Self-Inflicted Damage . | . . . Shots . | . . . Rammed 5 | . 4 1 Targets Rammed 5 | . 4 1 Kicked . | . . . Crushed . | . . . Highest Temperature 137 | 18 135 137 Average Temperature 28 | 9 30 25 Received Heat Transfer 198 | . 78 120 Siege Activations . | . . . Martial Activations . | . . . Shielding Activations . | . . . Robots Disrupted . | . . . Combat Hostiles . | . . . Robots Corrupted . | . . . Combat Hostiles . | . . . Parts Fried . | . . . Impact Corruptions . | . . . Robots Melted 1 | . . 1 Combat Hostiles 1 | . . 1 Parts Melted 5 | . 3 2 Heat Transferred 1739 | 148 1147 444 Parts Sabotaged . | . . . Parts Stolen . | . . . Parts Stripped . | . . . Power Chain Reactions . | . . . Alert | -11 -10 -10 ------- Run | Yrd Mat Sub Maximum Alert Level 1 | . 1 . Low Security (%) 98 | 100 98 . Level 1 1 | . 1 . Level 2 . | . . . Level 3 . | . . . Level 4 . | . . . Level 5 . | . . . High Security . | . . . Max Security . | . . . Peak Influence 204 | 20 204 . Initial 6 | . 6 . Average 64 | 4 67 . Influence Increases 473 | 30 443 . Destroy 0b10 Robot/C 320 | . 320 . Destroy 0b10 Robot/NC 75 | 30 45 . Destroy Leader 68 | . 68 . Successful Hack 7 | . 7 . Destroy Structure 3 | . 3 . Influence Decreases 473 | 20 453 . Entered New Map 4 | . 4 . Time Decay 459 | 20 439 . Lost Part 10 | . 10 . Squads Dispatched 2 | . 2 . Investigation 1 | . 1 . Extermination . | . . . Reinforcement 1 | . 1 . Assault . | . . . Garrison . | . . . Intercept . | . . . Searches Triggered . | . . . Construction Impeded . | . . . Haulers Reinforced . | . . . Active Scanning Responses . | . . . Cargo Convoy Interrupts . | . . . Stealth | -11 -10 -10 --------- Run | Yrd Mat Sub Distress Signals 1 | . 1 . Communications Jammed . | . . . Distress Signals . | . . . Times Spotted 36 | . 24 12 Peak Tracking Total 5 | . 5 2 Tactical Retreats . | . . . Traps | -11 -10 -10 ------- Run | Yrd Mat Sub Traps Triggered 2 | . 2 . Indirectly . | . . . Trap Hack Attempts . | . . . Triggered . | . . . Disarmed . | . . . Reprogrammed . | . . . Reused . | . . . Traps Extracted . | . . . Installed . | . . . Triggered . | . . . Machines | -11 -10 -10 ---------- Run | Yrd Mat Sub Machines Disabled . | . . . Max in Single Turn . | . . . Machines Repaired . | . . . Machines Dismantled . | . . . Machines Sabotaged . | . . . Overloaded Fab Kills . | . . . Hacking | -11 -10 -10 --------- Run | Yrd Mat Sub Machines Accessed 3 | . 3 . Terminals 2 | . 2 . Fabricators . | . . . Repair Stations . | . . . Recycling Units 1 | . 1 . Scanalyzers . | . . . Garrison Access . | . . . Total Hacks 4 | . 4 . Successful 4 | . 4 . Failed . | . . . Catastrophic . | . . . Database Lockouts . | . . . Manual 1 | . 1 . Terminals 3 | . 3 . Fabricators . | . . . Repair Stations . | . . . Recycling Units 1 | . 1 . Scanalyzers . | . . . Garrison Access . | . . . Terminal Hacks 3 | . 3 . Record 1 | . 1 . Terminal Index 1 | . 1 . Registered Components 1 | . 1 . Fabricator Hacks . | . . . Repair Station Hacks . | . . . Recycling Unit Hacks . | . . . Scanalyzer . | . . . Garrison Access Hacks . | . . . Unauthorized Hacks . | . . . Terminals . | . . . Fabricators . | . . . Repair Stations . | . . . Recycling Units . | . . . Scanalyzers . | . . . Garrison Access . | . . . Data Cores Recovered 1 | . 1 . Used . | . . . Hacking Detections 1 | . 1 . Full Trace Events . | . . . Feedback Events . | . . . Feedback Blocked . | . . . Robot Schematics Acquired . | . . . Robots Built . | . . . Authchips . | . . . Time . | . . . Total Robot Build Rating . | . . . Part Schematics Acquired . | . . . Parts Built . | . . . Authchips . | . . . Time . | . . . Total Part Build Rating . | . . . Part Studies Acquired . | . . . Parts Repaired . | . . . Time . | . . . Parts Recycled . | . . . Recycled Matter . | . . . Retrieved Matter . | . . . Retrieved Components . | . . . Parts Scanalyzed . | . . . Part Schematics Acquired . | . . . Parts Damaged . | . . . Bothacking | -11 -10 -10 ------------ Run | Yrd Mat Sub Used RIF Installer . | . . . Robots Hacked . | . . . Non-combat . | . . . Combat . | . . . Robot Hacks Applied . | . . . Relay Couplers Released . | . . . Fabnet Peak Effective % . | . . . Robots Rewired . | . . . Allies Hacked . | . . . Hacks Repelled . | . . . Allies | -11 -10 -10 -------- Run | Yrd Mat Sub Total Allies . | . . . Largest Group . | . . . Highest-Rated Group . | . . . Highest-Rated Ally . | . . . Total Orders . | . . . Ally Attacks . | . . . Total Damage . | . . . Kills . | . . . Allies Corrupted . | . . . Allies Melted . | . . . Intel | -11 -10 -10 ------- Run | Yrd Mat Sub Active Infowar (turns) 2015 | 6 1227 782 Structural 1803 | . 1021 782 Seismic 212 | 6 206 . Robot Analysis Total . | . . . Derelict Logs Recovered 1 | . . 1 Drone Launches . | . . . Drone Recoveries . | . . . Exploration | -11 -10 -10 ------------- Run | Yrd Mat Sub Turns Passed 4029 | 68 1688 2273 Spaces Moved 1276 | 26 625 625 Core . | . . . Treads 1276 | 26 625 625 Legs . | . . . Wheels . | . . . Hover . | . . . Flight . | . . . Fastest Speed 160 | 160 160 320 Average Speed 262 | 160 209 320 Slowest Speed 320 | 160 320 320 Overloaded Moves . | . . . Propulsion Burnouts . | . . . Robots Hopped . | . . . Potential Cave-ins . | . . . Cave-ins Triggered . | . . . Exploration Rate (%) 47 | 3 89 50 Regions Visited 2 Branch Regions 1 Pre-discovered Areas . | . . . Known Exits Taken . | . . . Unknown Exits Taken 2 | 1 1 . Scrap Searched 4 | . . 4 Spaces Dug . | . . . Terrain Destroyed 2 | . . 2 Melee . | . . . Projectile 2 | . . 2 AOE . | . . . Terrain Rammed . | . . . Walls Destroyed . | . . . Machines Disabled . | . . . Actions | -11 -10 -10 --------- Run | Yrd Mat Sub Total 1681 | 40 876 765 Wait 144 | 5 102 37 Move 1274 | 25 624 625 Hop . | . . . Pick Up 49 | 1 36 12 Fast Attach 3 | 1 2 . Attach 3 | . . 3 Detach . | . . . Swap 27 | 3 12 12 Drop 34 | . 25 9 Fire 142 | 5 71 66 Melee . | . . . Ram . | . . . Kick . | . . . Crush 5 | . 4 1 Escape Stasis . | . . . Rewire . | . . . Trap . | . . . Miscellaneous . | . . . Route ------- -11/Scrapyard -10/Materials (discovered 6 exits: [*Mat x3] / [*Min x2] / [*Sub]) -10/Subcaves (discovered 3 exits: *Mat x2 / [*Scr]) History --------- Turn | Location | Event 12 | -11/Scrapyard | Discovered new exit (range 3) 69 | -11/Scrapyard | Entered Materials 312 | -10/Materials | Build established: Mutant 313 | -10/Materials | Core integrity fell below 50% 515 | -10/Materials | Discovered new exit (range 13) 517 | -10/Materials | Discovered new exit (range 8) 710 | -10/Materials | Discovered new exit (range 13) 799 | -10/Materials | Discovered new exit (range 3) 911 | -10/Materials | Discovered new exit (range 7) 1685 | -10/Materials | Discovered new exit (range 5) 1757 | -10/Materials | Entered Subcaves 1758 | -10/Subcaves | Approached by a straggling Scientist 2554 | -10/Subcaves | Core integrity fell below 20% 2988 | -10/Subcaves | Disturbed a concealed Subdweller 3557 | -10/Subcaves | Discovered new exit (range 15) 3603 | -10/Subcaves | Shifting Twisted Machinery released Battle Cannon 3736 | -10/Subcaves | Identified exit to Materials 4030 | -10/Subcaves | Destroyed by MB-CBQ(R) with Subdweller Machine Gun Last Messages --------------- Battle Cannon falls loose from the Twisted Machinery. 03656_ System corrupted: Energy discharge (-52). 03674_ FX-WIZ(R) destroyed. 03709_ Sub. Beam Cannon shoots sparks and powers down. 03717_ Sub. Machine Gun shoots sparks and powers down. 03723_ D1-191(R) destroyed. 03729_ Acquired 48 matter. 03736_ Acquired derelict log, extracted data. Loading 1 Subcaves exit... 03783_ System corrupted: Matter fused (-9). 03838_ Slammed into IR-KLN(u). 03857_ IR-KLN(u) suffers critical hit (Destroy). 03857_ IR-KLN(u) cries out in pain. 03857_ IR-KLN(u) destroyed. 03860_ Acquired 17 matter. 03867_ 1V-LMS(R): "SUBMAD!" 03879_ Sub. Machine Gun shoots sparks and powers down. 03892_ 1V-LMS(R) destroyed. 03902_ Acquired 31 matter. 04026_ MB-CBQ(R) affixes Scrap Shield Fragment to Scrap Shield. Map ----- +----------------------------------------------------+ | # ##???## ##?????" " #?????# | | ##### ##???# #?????#" #??????# | | #"###### #???###### "#?????#""" #??????? | | ##### ##?##?????# "#????##"""" #??????? | | ###??# ### #?????## ##??###" "#???????? | | ##????## #??????# #?## ###???????? | | ???????####### #??????# #### ##?????????? | | ?????????????# ##???#### ##??????????? | | ?????????????# [ #???## ##??????????? | | ?????????????# [ #???# #??????????? | | ?????????????## #??# #??????????? | | ??????????????#### #??# #??????????? | | ??????????????????###??# ### #??????????? | | ???????????????????????## #?### #??????????? | | ????????????????????????## ## #???# ##??????????? | | ?????????????????????####### ##?## #??????????? | | ?????????????????????#;= <## ### ##??????????? | | ?????????????????????# & & #???????????? | | ?????????????????????# < %! ##??????????? | | ?????????????????????# R